bitfinex/quotes_SOLUSD_20251119
["timestamp","ask_amount","ask_price","bid_price","bid_amount"]
[1763571055806,11.01788032,133.54,133.51,0.66]
[1763571056101,11.01788032,133.53,133.52,1.84]
[1763571056298,10.53716264,133.55,133.52,1.84]
[1763571056476,11.01788032,133.53,133.52,1.84]
[1763571057003,11.01788032,133.53,133.49,0.66]
[1763571057204,11.01788032,133.53,133.52,1.84]
[1763571057406,11.01788032,133.53,133.49,0.66]
[1763571057614,11.01788032,133.51,133.5,1.84]
[1763571057978,11.01788032,133.52,133.5,1.84]
[1763571058206,11.01788032,133.52,133.49,0.66]
[1763571058207,11.01788032,133.52,133.51,1.84]
[1763571059010,11.01788032,133.53,133.51,1.84]
[1763571059319,11.01788032,133.52,133.51,1.84]
[1763571059902,11.01788032,133.52,133.48,0.66]
[1763571060084,11.01788032,133.52,133.46,1.84]
[1763571060085,10.40882769,133.51,133.46,1.84]
[1763571060291,0.62,133.51,133.46,2.5]
[1763571060496,11.01788032,133.5,133.47,0.66]
[1763571060807,11.01788032,133.49,133.46,1.84]
[1763571061110,18.74096,133.51,133.39,62.1]
[1763571061111,11.01788032,133.47,133.39,62.1]
[1763571061280,18.12096,133.49,133.43,11.01788032]
[1763571061480,11.01788032,133.46,133.4,62.76]
[1763571061705,11.01788032,133.47,133.43,11.01788032]
[1763571061905,0.74833495,133.53,133.45,11.01788032]
[1763571062098,11.01788032,133.53,133.48,11.01788032]
[1763571062281,11.01788032,133.52,133.49,0.66]
[1763571062490,18.86929495,133.54,133.49,2.5]
[1763571062687,11.01788032,133.52,133.49,2.5]
[1763571062887,11.01788032,133.52,133.5,0.66]
[1763571063399,18.86929495,133.54,133.51,1.84]
[1763571063596,0.2,133.56,133.52,11.01788032]
[1763571063789,11.01788032,133.54,133.51,1.84]
[1763571064109,11.01788032,133.54,133.51,2.5]
[1763571064484,11.01788032,133.54,133.52,1.84]
[1763571064696,0.94833495,133.56,133.52,1.84]
[1763571064697,11.01788032,133.53,133.52,1.84]
[1763571065116,11.01788032,133.54,133.52,1.84]
[1763571065324,11.01788032,133.54,133.52,2.5]
[1763571065618,11.01788032,133.55,133.53,0.66]
[1763571065823,11.01788032,133.54,133.51,0.66]
[1763571066005,11.01788032,133.53,133.48,11.01788032]
[1763571066205,1.56833495,133.56,133.49,12.85788032]
[1763571066206,18.12096,133.55,133.49,12.85788032]
[1763571066405,11.01788032,133.54,133.49,12.85788032]
[1763571066614,11.01788032,133.53,133.49,1.84]
[1763571066800,18.86929495,133.55,133.5,0.66]
[1763571066801,7.0218644,133.54,133.5,0.66]
[1763571067612,7.0218644,133.54,133.51,1.84]
[1763571067798,7.0218644,133.53,133.52,1.84]
[1763571068227,7.0218644,133.53,133.48,7.0218644]
[1763571068443,7.0218644,133.52,133.48,0.66]
[1763571068608,7.0218644,133.52,133.49,2.5]
[1763571068814,7.0218644,133.51,133.49,2.5]
[1763571069033,0.74833495,133.53,133.49,2.5]
[1763571069209,7.0218644,133.52,133.49,2.5]
[1763571069532,0.74833495,133.53,133.49,8.8618644]
[1763571069831,9.78882769,133.53,133.5,2.5]
[1763571070327,0.2,133.56,133.52,7.0218644]
[1763571070535,0.2,133.56,133.55,7.0218644]
[1763571070746,0.2,133.56,133.55,1.84]
[1763571071102,0.2,133.56,133.55,0.66]
[1763571071323,0.2,133.56,133.55,2.5]
[1763571071819,7.2218644,133.56,133.52,0.66]
[1763571072022,22.21501801,133.55,133.53,1.84]
[1763571072264,9.78882769,133.55,133.53,8.8618644]
[1763571072548,9.78882769,133.55,133.54,1.84]
[1763571072753,15.19997798,133.55,133.54,1.84]
[1763571073137,9.98882769,133.56,133.54,1.84]
[1763571073334,0.2,133.56,133.54,1.84]
[1763571073532,0.2,133.56,133.55,1.84]
[1763571073730,9.78882769,133.55,133.49,7.0218644]
[1763571073932,7.0218644,133.5,133.45,0.66]
[1763571074229,5.41694783,133.49,133.47,7.0218644]
[1763571074452,5.42896634,133.48,133.45,0.66]
[1763571074626,15.21779403,133.47,133.46,1.84]
[1763571075027,15.21779403,133.47,133.43,7.6818644]
[1763571075239,15.21779403,133.47,133.44,1.84]
[1763571075240,5.42896634,133.46,133.44,1.84]
[1763571075446,5.42896634,133.45,133.44,1.84]
[1763571075650,5.42896634,133.46,133.44,1.84]
[1763571075849,5.42896634,133.45,133.44,1.84]
[1763571076162,5.42896634,133.45,133.42,7.0218644]
[1763571076163,15.21779403,133.45,133.42,0.66]
[1763571076358,5.42896634,133.44,133.43,1.84]
[1763571076739,5.42896634,133.44,133.43,2.5]
[1763571077540,7.0218644,133.45,133.43,1.84]
[1763571077737,18.74096,133.49,133.4,0.66]
[1763571077738,7.0218644,133.44,133.4,0.66]
[1763571078046,9.78882769,133.46,133.4,0.66]
[1763571078047,7.0218644,133.43,133.41,1.84]
[1763571078424,9.78882769,133.45,133.41,2.5]
[1763571078648,7.0218644,133.44,133.41,2.5]
[1763571079253,9.78882769,133.45,133.41,0.66]
[1763571079557,7.0218644,133.44,133.41,0.66]
[1763571080832,7.0218644,133.43,133.41,0.66]
[1763571081039,9.78882769,133.41,133.35,0.1]
[1763571081348,7.0218644,133.38,133.35,0.1]
[1763571081533,7.0218644,133.38,133.36,1.84]
[1763571081858,18.12096,133.41,133.36,1.84]
[1763571082169,7.0218644,133.42,133.37,7.6818644]
[1763571082354,7.0218644,133.42,133.38,0.66]
[1763571082753,7.0218644,133.41,133.38,0.66]
[1763571083069,7.0218644,133.4,133.39,1.84]
[1763571083449,7.0218644,133.41,133.39,1.84]
[1763571083846,16.81069209,133.4,133.39,1.84]
[1763571084042,0.62,133.47,133.4,0.66]
[1763571084244,16.81069209,133.46,133.41,7.0218644]
[1763571084449,9.78882769,133.46,133.43,7.0218644]
[1763571084653,7.0218644,133.48,133.44,8.8618644]
[1763571084842,7.0218644,133.48,133.44,7.0218644]
[1763571085045,7.0218644,133.47,133.44,1.84]
[1763571085343,9.78882769,133.44,133.42,1.84]
[1763571085768,9.78882769,133.46,133.43,7.6718644]
[1763571085959,9.78882769,133.48,133.45,7.0218644]
[1763571086155,16.81069209,133.49,133.45,7.0218644]
[1763571086355,9.78882769,133.49,133.46,7.6718644]
[1763571086558,0.62,133.55,133.48,7.0218644]
[1763571086871,0.62,133.55,133.49,7.0218644]
[1763571086872,7.0218644,133.53,133.49,7.0218644]
[1763571087075,9.78882769,133.52,133.49,7.0218644]
[1763571087274,7.0218644,133.53,133.49,7.6718644]
[1763571087670,7.0218644,133.5,133.46,1.84]
[1763571087875,9.78882769,133.48,133.46,1.84]
[1763571089062,9.78882769,133.48,133.46,2.49]
[1763571089404,9.78882769,133.48,133.47,1.84]
[1763571089555,7.0218644,133.49,133.47,1.84]
[1763571089878,16.81069209,133.5,133.47,1.84]
[1763571090077,7.0218644,133.49,133.47,1.84]
[1763571090383,9.78882769,133.5,133.47,1.84]
[1763571090753,9.78882769,133.55,133.48,0.65]
[1763571090955,7.0218644,133.53,133.49,7.0218644]
[1763571091155,7.2218644,133.56,133.51,7.0218644]
[1763571091498,7.2218644,133.56,133.52,1.84]
[1763571091653,9.78882769,133.55,133.52,1.84]
[1763571091851,0.2,133.56,133.52,2.49]
[1763571092050,0.2,133.56,133.46,7.49275011]
[1763571092051,9.78882769,133.54,133.49,0.65]
[1763571092247,9.78882769,133.54,133.5,8.8618644]
[1763571092784,9.78882769,133.54,133.51,0.65]
[1763571092990,9.78882769,133.54,133.51,2.49]
[1763571093151,16.81069209,133.54,133.49,7.0218644]
[1763571093350,16.81069209,133.54,133.5,8.8618644]
[1763571093597,16.81069209,133.54,133.51,1.84]
[1763571094867,16.81069209,133.54,133.51,2.49]
[1763571095474,16.81069209,133.54,133.5,7.0218644]
[1763571095773,17.43069209,133.54,133.49,7.6718644]
[1763571095982,17.43069209,133.54,133.43,62.1]
[1763571095983,16.81069209,133.51,133.5,1.84]
[1763571096182,18.86929495,133.53,133.5,1.84]
[1763571096483,9.78882769,133.52,133.5,1.84]
[1763571097271,9.78882769,133.53,133.51,7.6718644]
[1763571097657,9.78882769,133.55,133.52,0.65]
[1763571097860,9.78882769,133.55,133.52,7.6718644]
[1763571098060,9.78882769,133.55,133.51,7.0218644]
[1763571098281,7.0218644,133.54,133.52,1.84]
[1763571098974,7.0218644,133.54,133.47,80.22096]
[1763571098975,16.81069209,133.53,133.47,62.75]
[1763571099278,9.78882769,133.53,133.5,7.0218644]
[1763571099450,9.78882769,133.54,133.51,7.0218644]
[1763571099653,7.2218644,133.56,133.51,7.0218644]
[1763571099864,9.78882769,133.55,133.52,7.6718644]
[1763571100060,9.78882769,133.55,133.53,1.84]
[1763571100459,7.0218644,133.54,133.52,1.84]
[1763571100859,18.12096,133.52,133.51,1.84]
[1763571101066,27.90978769,133.52,133.48,7.0218644]
[1763571101378,27.90978769,133.52,133.49,1.84]
[1763571101585,9.78882769,133.51,133.49,1.84]
[1763571101799,9.78882769,133.51,133.44,62.1]
[1763571102095,9.78882769,133.51,133.46,7.0218644]
[1763571102096,7.0218644,133.5,133.46,7.0218644]
[1763571102304,16.81069209,133.49,133.47,1.84]
[1763571102493,9.78882769,133.49,133.47,1.84]
[1763571102921,10.53716264,133.51,133.48,0.65]
[1763571103284,10.53716264,133.51,133.47,8.8618644]
[1763571103617,17.55902704,133.51,133.47,7.6718644]
[1763571103910,17.55902704,133.51,133.48,1.84]
[1763571104116,16.81069209,133.51,133.48,1.84]
[1763571104413,17.43069209,133.51,133.48,1.84]
[1763571104579,9.78882769,133.51,133.48,1.84]
[1763571105090,16.81069209,133.51,133.48,1.84]
[1763571105304,17.43069209,133.51,133.48,1.84]
[1763571105618,16.81069209,133.51,133.48,1.84]
[1763571106082,17.55902704,133.51,133.48,1.84]
[1763571106713,17.55902704,133.51,133.47,7.0218644]
[1763571106897,17.55902704,133.51,133.48,1.84]
[1763571107600,10.53716264,133.51,133.48,1.84]
[1763571107904,17.55902704,133.51,133.48,1.84]
[1763571108092,9.78882769,133.5,133.47,1.84]
[1763571108288,9.78882769,133.5,133.46,7.0218644]
[1763571108589,9.78882769,133.5,133.47,1.84]
[1763571108782,25.1428244,133.52,133.48,7.0218644]
[1763571109088,9.78882769,133.51,133.48,7.0218644]
[1763571109291,9.78882769,133.51,133.49,7.0218644]
[1763571109695,9.78882769,133.51,133.5,7.0218644]
[1763571110405,0.2,133.56,133.5,7.7218644]
[1763571110614,0.2,133.56,133.53,7.0218644]
[1763571110824,0.2,133.56,133.54,1.84]
[1763571111121,0.2,133.56,133.54,8.8618644]
[1763571111485,0.2,133.56,133.54,1.84]
[1763571112111,0.2,133.56,133.54,8.8618644]
[1763571112292,0.2,133.56,133.54,1.84]
[1763571112492,0.2,133.56,133.53,1.84]
[1763571112806,18.12096,133.55,133.52,7.0218644]
[1763571112990,7.0218644,133.53,133.46,0.7]
[1763571113189,9.78882769,133.49,133.42,0.7]
[1763571113410,9.78882769,133.47,133.42,0.7]
[1763571113611,16.81069209,133.47,133.42,0.7]
[1763571113912,9.78882769,133.45,133.39,0.7]
[1763571114086,9.78882769,133.46,133.42,7.0218644]
[1763571114290,9.78882769,133.46,133.43,7.0218644]
[1763571114492,7.0218644,133.48,133.4,2.54]
[1763571114789,9.78882769,133.49,133.45,7.0218644]
[1763571114993,16.81069209,133.49,133.46,1.84]
[1763571115389,9.78882769,133.49,133.46,8.8618644]
[1763571115589,16.81069209,133.49,133.46,1.84]
[1763571115800,16.81069209,133.47,133.39,18.12096]
[1763571115990,16.81069209,133.47,133.43,7.0218644]
[1763571117522,16.81069209,133.47,133.42,7.0218644]
[1763571117828,16.81069209,133.47,133.44,1.84]
[1763571118188,16.81069209,133.47,133.45,1.84]
[1763571118735,9.78882769,133.47,133.42,7.0218644]
[1763571118901,7.0218644,133.47,133.44,1.84]
[1763571119090,7.0218644,133.46,133.44,1.84]
[1763571120296,9.78882769,133.44,133.36,0.7]
[1763571120531,9.78882769,133.44,133.42,7.0218644]
[1763571120702,9.78882769,133.47,133.43,8.8618644]
[1763571120903,16.81069209,133.47,133.43,1.84]
[1763571121224,16.81069209,133.47,133.43,2.54]
[1763571121401,7.0218644,133.47,133.43,1.84]
[1763571121599,9.78882769,133.48,133.43,2.54]
[1763571121820,9.78882769,133.48,133.39,7.0218644]
[1763571121821,9.78882769,133.43,133.39,7.0218644]
[1763571122033,9.78882769,133.41,133.37,7.7218644]
[1763571122222,9.78882769,133.39,133.35,7.1218644]
[1763571122536,9.78882769,133.39,133.38,1.84]
[1763571122890,16.81069209,133.39,133.38,1.84]
[1763571123094,17.49069209,133.39,133.35,0.1]
[1763571123303,16.81069209,133.36,133.35,0.1]
[1763571123935,35.61165209,133.36,133.35,0.1]
[1763571124119,27.90978769,133.36,133.35,0.1]
[1763571125035,35.61165209,133.36,133.35,0.1]
[1763571125817,17.49069209,133.36,133.35,0.1]
[1763571126318,24.51255649,133.36,133.29,0.1]
[1763571126650,0.68,133.37,133.29,0.8]
[1763571126811,9.78882769,133.33,133.29,0.8]
[1763571127007,16.81069209,133.33,133.29,0.8]
[1763571127346,0.68,133.36,133.29,0.8]
[1763571127347,7.0218644,133.36,133.31,7.0218644]
[1763571127647,9.78882769,133.42,133.35,7.0218644]
[1763571127849,9.78882769,133.38,133.35,7.0218644]
[1763571128051,7.0218644,133.39,133.35,1.84]
[1763571128358,0.74833495,133.41,133.29,7.60242685]
[1763571128359,9.78882769,133.35,133.32,1.84]
[1763571128522,7.0218644,133.34,133.29,1.94]
[1763571128726,9.78882769,133.33,133.29,8.9618644]
[1763571128942,9.78882769,133.33,133.29,2.64]
[1763571129133,9.78882769,133.33,133.29,0.1]
[1763571129333,0.68,133.33,133.29,0.1]
[1763571129527,9.78882769,133.34,133.29,0.1]
[1763571129740,10.46882769,133.34,133.29,0.1]
[1763571130051,10.46882769,133.34,133.29,13.67582192]
[1763571130247,0.68,133.33,133.29,0.1]
[1763571130423,10.46882769,133.34,133.29,13.67582192]
[1763571130619,10.46882769,133.34,133.29,2.64]
[1763571130842,0.68,133.33,133.29,1.94]
[1763571131150,9.78882769,133.3,133.29,0.1]
[1763571131524,21.50464961,133.3,133.29,0.1]
[1763571131724,20.82464961,133.3,133.29,0.1]
[1763571132264,21.50464961,133.3,133.29,0.1]
[1763571132550,20.82464961,133.3,133.29,0.1]
[1763571132922,9.78882769,133.3,133.29,0.1]
[1763571134539,20.82464961,133.34,133.29,0.8]
[1763571134739,20.82464961,133.34,133.29,11.83582192]
[1763571134740,11.78415687,133.33,133.29,11.83582192]
[1763571134935,11.78415687,133.33,133.29,0.8]
[1763571135134,11.78415687,133.33,133.29,11.83582192]
[1763571135344,0.74833495,133.33,133.29,13.67582192]
[1763571135523,0.74833495,133.33,133.3,0.7]
[1763571135726,9.78882769,133.31,133.29,0.1]
[1763571136153,20.82464961,133.31,133.29,0.1]
[1763571136333,21.50464961,133.31,133.29,0.1]
[1763571137058,10.53716264,133.34,133.3,11.03582192]
[1763571137262,21.57298456,133.34,133.3,11.03582192]
[1763571137471,22.25298456,133.34,133.3,1.84]
[1763571137767,9.78882769,133.32,133.3,1.84]
[1763571137961,10.53716264,133.32,133.3,1.84]
[1763571138130,10.53716264,133.32,133.29,1.94]
[1763571138326,10.53716264,133.32,133.29,0.1]
[1763571138327,20.82464961,133.3,133.29,0.1]
[1763571138533,21.57298456,133.3,133.29,0.1]
[1763571138756,22.25298456,133.3,133.29,0.1]
[1763571139434,9.78882769,133.29,133.28,0.1]
[1763571139760,21.50464961,133.29,133.28,0.1]
[1763571140186,22.25298456,133.29,133.28,0.1]
[1763571140394,53.24976648,133.29,133.28,0.1]
[1763571140539,35.12880648,133.29,133.27,0.1]
[1763571140743,21.53464961,133.28,133.27,0.1]
[1763571140942,10.49882769,133.28,133.27,0.1]
[1763571141152,21.53464961,133.28,133.13,18.12096]
[1763571141470,13.62415687,133.29,133.17,11.03582192]
[1763571141471,9.78882769,133.2,133.17,11.03582192]
[1763571141677,9.78882769,133.22,133.18,11.73582192]
[1763571142054,9.78882769,133.23,133.19,11.03582192]
[1763571142375,9.78882769,133.23,133.19,11.73582192]
[1763571142566,21.53464961,133.23,133.19,11.73582192]
[1763571142764,9.78882769,133.24,133.19,11.73582192]
[1763571143071,11.03582192,133.23,133.19,0.7]
[1763571143258,9.78882769,133.24,133.2,0.7]
[1763571143259,11.03582192,133.24,133.2,0.7]
[1763571143456,20.82464961,133.25,133.2,13.57582192]
[1763571143666,20.82464961,133.25,133.13,18.12096]
[1763571143667,20.82464961,133.25,133.21,0.7]
[1763571143849,20.82464961,133.25,133.21,11.73582192]
[1763571144052,20.82464961,133.25,133.19,0.7]
[1763571144053,9.78882769,133.25,133.19,0.7]
[1763571144350,20.82464961,133.23,133.19,1.84]
[1763571144549,9.78882769,133.21,133.19,1.84]
[1763571144769,0.74833495,133.25,133.2,2.54]
[1763571144971,20.82464961,133.24,133.2,2.54]
[1763571145176,9.78882769,133.2,133.16,0.7]
[1763571145346,20.82464961,133.24,133.19,11.03582192]
[1763571145545,0.74833495,133.25,133.19,1.84]
[1763571145755,0.74833495,133.28,133.24,11.03582192]
[1763571145970,1.84,133.35,133.17,18.12096]
[1763571145971,11.03582192,133.29,133.25,2.55]
[1763571146154,11.03582192,133.28,133.25,2.55]
[1763571146355,11.03582192,133.26,133.21,1.84]
[1763571146569,11.03582192,133.26,133.22,1.84]
[1763571146949,11.03582192,133.26,133.23,0.71]
[1763571147160,0.74833495,133.27,133.23,0.71]
[1763571147655,9.78882769,133.28,133.23,0.71]
[1763571147861,0.74833495,133.27,133.24,1.84]
[1763571148074,9.78882769,133.26,133.24,1.84]
[1763571148384,9.78882769,133.26,133.23,1.84]
[1763571148550,9.78882769,133.26,133.21,0.71]
[1763571148751,11.74582192,133.25,133.13,1.99999999]
[1763571149061,11.74582192,133.25,133.12,62.1]
[1763571149062,9.78882769,133.25,133.21,11.03582192]
[1763571149259,10.53716264,133.25,133.21,1.84]
[1763571149478,10.53716264,133.25,133.21,0.71]
[1763571149657,10.53716264,133.25,133.21,2.55]
[1763571149856,10.53716264,133.25,133.21,13.58582192]
[1763571150477,10.53716264,133.25,133.22,11.74582192]
[1763571150657,1.45833495,133.3,133.22,0.71]
[1763571150855,9.78882769,133.27,133.24,11.03582192]
[1763571151077,10.53716264,133.27,133.25,1.84]
[1763571151587,11.74582192,133.34,133.26,11.74582192]
[1763571151900,11.78415687,133.35,133.31,11.03582192]
[1763571152067,9.78882769,133.34,133.3,12.87582192]
[1763571152257,11.78415687,133.33,133.27,0.71]
[1763571152582,12.49415687,133.33,133.29,11.03582192]
[1763571152800,9.78882769,133.32,133.29,12.87582192]
[1763571153089,9.78882769,133.32,133.27,0.71]
[1763571153285,0.74833495,133.31,133.29,1.84]
[1763571153584,22.28298456,133.32,133.27,0.71]
[1763571153793,10.49882769,133.31,133.27,11.03582192]
[1763571154094,9.78882769,133.29,133.25,11.03582192]
[1763571154259,9.78882769,133.29,133.26,1.84]
[1763571154577,9.78882769,133.29,133.26,11.74582192]
[1763571154779,9.78882769,133.29,133.26,13.58582192]
[1763571154983,10.53716264,133.3,133.26,12.87582192]
[1763571155377,21.57298456,133.3,133.26,12.87582192]
[1763571155585,9.78882769,133.29,133.26,13.58582192]
[1763571155778,9.78882769,133.29,133.26,1.84]
[1763571156100,9.78882769,133.29,133.26,13.58582192]
[1763571156394,0.74833495,133.3,133.26,13.58582192]
[1763571156692,0.74833495,133.3,133.28,11.03582192]
[1763571156889,10.53716264,133.32,133.27,0.71]
[1763571157204,11.03582192,133.31,133.26,1.84]
[1763571157402,11.03582192,133.31,133.2,11.03582192]
[1763571157403,20.82464961,133.29,133.24,11.03582192]
[1763571157607,20.82464961,133.29,133.25,1.84]
[1763571157608,0.74833495,133.28,133.25,1.84]
[1763571157915,9.78882769,133.28,133.23,0.71]
[1763571158080,9.78882769,133.26,133.24,1.84]
[1763571158400,0.74833495,133.25,133.23,0.71]
[1763571158625,0.74833495,133.25,133.17,7.50894489]
[1763571158626,10.53716264,133.25,133.24,1.84]
[1763571158785,10.53716264,133.25,133.22,11.03582192]
[1763571159107,9.78882769,133.24,133.19,0.71]
[1763571159305,10.49882769,133.24,133.2,1.84]
[1763571159481,21.53464961,133.24,133.19,0.71]
[1763571159684,20.82464961,133.22,133.17,11.74582192]
[1763571159901,20.82464961,133.22,133.18,2.55]
[1763571160110,9.78882769,133.22,133.19,1.84]
[1763571160411,9.78882769,133.24,133.2,11.03582192]
[1763571160708,9.78882769,133.22,133.19,11.03582192]
[1763571160896,9.78882769,133.22,133.18,1.84]
[1763571161479,20.82464961,133.22,133.18,1.84]
[1763571161676,0.71,133.24,133.12,7.51201923]
[1763571161677,1.45833495,133.24,133.12,7.51201923]
[1763571161902,1.45833495,133.24,133.18,11.03582192]
[1763571162116,0.74833495,133.24,133.19,1.84]
[1763571162284,9.78882769,133.23,133.14,0.71]
[1763571162495,9.78882769,133.23,133.2,11.03582192]
[1763571162703,0.74833495,133.24,133.21,12.87582192]
[1763571162902,18.12096,133.24,133.21,12.87582192]
[1763571163189,18.86929495,133.24,133.21,1.84]
[1763571163409,29.90511687,133.24,133.16,0.71]
[1763571163601,18.86929495,133.24,133.2,11.03582192]
[1763571163798,0.74833495,133.25,133.22,11.03582192]
[1763571164021,20.82464961,133.28,133.23,11.03582192]
[1763571164206,20.82464961,133.28,133.22,11.03582192]
[1763571164207,9.78882769,133.26,133.22,11.03582192]
[1763571164414,0.74833495,133.25,133.23,1.84]
[1763571165424,9.78882769,133.24,133.2,11.03582192]
[1763571165604,0.74833495,133.25,133.22,12.87582192]
[1763571165931,9.78882769,133.25,133.21,12.87582192]
[1763571166222,0.71,133.24,133.13,19.58210549]
[1763571166516,9.78882769,133.23,133.19,11.03582192]
[1763571166821,10.53716264,133.25,133.2,12.87582192]
[1763571167012,21.57298456,133.25,133.21,1.84]
[1763571167315,20.82464961,133.24,133.21,1.84]
[1763571167515,0.74833495,133.23,133.21,1.84]
[1763571168118,9.78882769,133.22,133.2,1.84]
[1763571168293,0.74833495,133.23,133.2,1.84]
[1763571168494,10.53716264,133.25,133.21,11.03582192]
[1763571168795,11.03582192,133.24,133.2,11.03582192]
[1763571168993,0.74833495,133.23,133.2,11.03582192]
[1763571170116,10.53716264,133.24,133.2,11.03582192]
[1763571171021,11.03582192,133.25,133.22,11.03582192]
[1763571171022,0.74833495,133.25,133.22,11.03582192]
[1763571171225,0.74833495,133.25,133.23,1.84]
[1763571172117,11.03582192,133.26,133.23,1.84]
[1763571172118,0.74833495,133.26,133.23,1.84]
[1763571174708,11.78415687,133.26,133.23,1.84]
[1763571175444,11.78415687,133.26,133.21,11.03582192]
[1763571175728,11.78415687,133.26,133.22,1.84]
[1763571176041,21.53464961,133.25,133.2,11.03582192]
[1763571176214,21.57298456,133.24,133.23,1.84]
[1763571176421,10.53716264,133.27,133.23,1.84]
[1763571176596,9.78882769,133.25,133.23,1.84]
[1763571176803,10.53716264,133.25,133.21,11.03582192]
[1763571176999,10.53716264,133.25,133.22,1.84]
[1763571177633,11.78415687,133.26,133.22,1.84]
[1763571178151,20.82464961,133.25,133.23,1.84]
[1763571178315,9.78882769,133.25,133.23,1.84]
[1763571179522,11.78415687,133.26,133.16,62.1]
[1763571179523,0.74833495,133.26,133.24,1.84]
[1763571180212,0.74833495,133.26,133.22,11.03582192]
[1763571180413,1.99999999,133.34,133.22,11.03582192]
[1763571180414,0.74833495,133.34,133.25,11.03582192]
[1763571180635,0.71,133.36,133.31,11.03582192]
[1763571180817,11.78415687,133.38,133.32,1.84]
[1763571181027,11.03582192,133.35,133.33,1.84]
[1763571181421,0.74833495,133.36,133.29,11.70582192]
[1763571181422,11.74582192,133.34,133.29,11.70582192]
[1763571181614,11.74582192,133.34,133.26,0.67]
[1763571181615,12.49415687,133.34,133.26,0.67]
[1763571181827,12.49415687,133.34,133.29,11.03582192]
[1763571182014,9.78882769,133.33,133.29,11.03582192]
[1763571182210,0.74833495,133.32,133.29,11.03582192]
[1763571182426,0.74833495,133.32,133.3,1.84]
[1763571182642,20.82464961,133.31,133.21,0.67]
[1763571182939,20.82464961,133.31,133.22,1.84]
[1763571182940,11.03582192,133.28,133.22,1.84]
[1763571183122,21.57298456,133.27,133.21,0.67]
[1763571183325,10.53716264,133.27,133.23,11.03582192]
[1763571183524,0.74833495,133.29,133.26,11.03582192]
[1763571183831,0.74833495,133.29,133.24,0.67]
[1763571183832,9.78882769,133.29,133.27,1.84]
[1763571184031,11.03582192,133.28,133.26,1.84]
[1763571184250,10.53716264,133.27,133.25,1.84]
[1763571185440,22.28298456,133.27,133.25,1.84]
[1763571185635,10.53716264,133.27,133.25,1.84]
[1763571185819,9.78882769,133.29,133.25,12.87582192]
[1763571186026,18.12096,133.3,133.27,11.03582192]
[1763571186346,18.86929495,133.3,133.27,11.03582192]
[1763571186725,18.86929495,133.3,133.25,2.51]
[1763571186726,0.71,133.34,133.25,1.84]
[1763571186926,21.57298456,133.33,133.28,11.03582192]
[1763571187233,21.57298456,133.33,133.29,1.84]
[1763571187449,10.53716264,133.33,133.3,11.03582192]
[1763571187630,10.53716264,133.33,133.31,1.84]
[1763571187824,10.49882769,133.32,133.31,1.84]
[1763571188957,9.78882769,133.32,133.26,0.67]
[1763571189162,9.78882769,133.33,133.29,11.03582192]
[1763571189436,0.71,133.32,133.26,0.67]
[1763571189739,9.78882769,133.3,133.28,11.03582192]
[1763571189940,9.78882769,133.3,133.26,0.67]
[1763571190152,1.45833495,133.29,133.25,11.03582192]
[1763571190332,1.45833495,133.29,133.24,0.67]
[1763571190333,9.78882769,133.28,133.26,1.84]
[1763571190539,1.45833495,133.29,133.25,11.03582192]
[1763571190737,9.78882769,133.3,133.27,1.84]
[1763571190936,0.74833495,133.34,133.29,7.04442447]
[1763571191135,0.74833495,133.35,133.28,8.88442447]
[1763571191342,0.74833495,133.35,133.31,7.04442447]
[1763571191556,1.45833495,133.35,133.29,0.67]
[1763571191769,1.45833495,133.39,133.33,7.04442447]
[1763571191931,0.74833495,133.38,133.34,0.67]
[1763571192131,7.04442447,133.36,133.31,7.04442447]
[1763571192330,7.04442447,133.36,133.29,0.67]
[1763571192331,8.50275942,133.38,133.33,1.84]
[1763571192543,0.74833495,133.38,133.34,7.04442447]
[1763571192746,0.74833495,133.43,133.37,7.04442447]
[1763571192946,0.74833495,133.42,133.39,7.04442447]
[1763571193254,0.2,133.44,133.41,7.04442447]
[1763571193649,0.2,133.44,133.42,7.04442447]